bitfinex-derivatives/quotes_BNBF0:USTF0_20250810
["timestamp","ask_amount","ask_price","bid_price","bid_amount"]
[1754856707587,0.81729517,804.34,802.05,0.21677718]
[1754856707892,0.81729517,804.33,802.05,0.21677718]
[1754856708088,0.81729517,804.32,802.05,0.21677718]
[1754856708292,0.81729517,804.31,802.05,0.21677718]
[1754856708495,0.81729517,804.3,802.05,0.21677718]
[1754856708690,0.81729517,804.29,802.05,0.21677718]
[1754856708894,0.81729517,804.28,802.05,0.21677718]
[1754856709195,0.81729517,804.27,802.05,0.21677718]
[1754856709391,0.81729517,804.26,802.05,0.21677718]
[1754856709594,0.83821756,804.52,802.05,0.21677718]
[1754856709595,0.81729517,804.25,802.05,0.21677718]
[1754856709894,0.81729517,804.24,802.05,0.21677718]
[1754856710094,0.81729517,804.23,802.05,0.21677718]
[1754856710391,0.81729517,804.22,802.05,0.21677718]
[1754856710592,0.81729517,804.21,802.05,0.21677718]
[1754856710790,0.81729517,804.2,802.05,0.21677718]
[1754856710991,0.81729517,804.19,802.05,0.21677718]
[1754856711191,0.81729517,804.18,802.05,0.21677718]
[1754856711390,0.81729517,804.17,802.05,0.21677718]
[1754856711590,0.81729517,804.16,802.05,0.21677718]
[1754856711790,0.81729517,804.15,802.05,0.21677718]
[1754856711997,0.81729517,804.14,802.05,0.21677718]
[1754856712193,0.81729517,804.13,802.05,0.21677718]
[1754856712392,0.81729517,804.12,802.05,0.21677718]
[1754856712692,0.83821756,804.47,802.05,0.21677718]
[1754856712898,0.81602859,804.46,802.05,0.21677718]
[1754856713096,0.81602859,804.45,802.05,0.21677718]
[1754856713291,0.81602859,804.44,802.05,0.21677718]
[1754856713596,0.81602859,804.43,802.05,0.21677718]
[1754856713793,0.81602859,804.42,802.05,0.21677718]
[1754856714096,0.81602859,804.41,802.05,0.21677718]
[1754856714297,0.81602859,804.4,802.05,0.21677718]
[1754856714498,0.81602859,804.39,802.05,0.21677718]
[1754856714700,0.81602859,804.38,802.05,0.21677718]
[1754856714900,0.81602859,804.37,802.05,0.21677718]
[1754856715100,0.81602859,804.36,802.05,0.21677718]
[1754856715397,0.81602859,804.35,802.05,0.21677718]
[1754856715601,0.81602859,804.34,802.05,0.21677718]
[1754856715902,0.81602859,804.33,802.05,0.21677718]
[1754856716103,0.2164657,804.8,802.05,0.21677718]
[1754856716104,0.83821756,804.24,802.05,0.21677718]
[1754856716301,0.81602859,804.23,802.05,0.21677718]
[1754856716603,0.81602859,804.22,802.05,0.21677718]
[1754856716902,0.81602859,804.21,802.05,0.21677718]
[1754856717104,0.81602859,804.2,802.05,0.21677718]
[1754856717298,0.81602859,804.19,802.05,0.21677718]
[1754856717500,0.81602859,804.18,802.05,0.21677718]
[1754856717698,0.81602859,804.17,802.05,0.21677718]
[1754856717898,0.81498489,804.16,802.05,0.21677718]
[1754856718103,0.81498489,804.15,802.05,0.21677718]
[1754856718301,0.81498489,804.14,802.05,0.21677718]
[1754856718600,0.81498489,804.13,802.05,0.21677718]
[1754856718799,0.81498489,804.12,802.05,0.21677718]
[1754856718998,0.8244015,804.21,802.05,0.21677718]
[1754856718999,0.81498489,804.11,802.05,0.21677718]
[1754856719200,0.81498489,804.1,802.05,0.21677718]
[1754856719504,0.81498489,804.09,802.05,0.21677718]
[1754856719699,0.81498489,804.08,802.05,0.21677718]
[1754856719902,0.81498489,804.07,802.05,0.21677718]
[1754856720099,0.81498489,804.06,802.05,0.21677718]
[1754856720404,0.81498489,804.05,802.05,0.21677718]
[1754856720704,0.81498489,804.04,802.05,0.21677718]
[1754856720999,0.81498489,804.03,802.05,0.21677718]
[1754856721203,0.81498489,804.02,802.05,0.21677718]
[1754856721404,0.81498489,804.01,802.05,0.21677718]
[1754856721605,0.81498489,804.0,802.05,0.21677718]
[1754856721802,0.81498489,803.99,802.05,0.21677718]
[1754856722003,0.81498489,803.98,802.05,0.21677718]
[1754856722302,0.81498489,803.97,802.05,0.21677718]
[1754856722500,0.81498489,803.96,802.05,0.21677718]
[1754856722701,0.81498489,803.95,802.05,0.21677718]
[1754856722905,0.81498489,803.94,802.05,0.21677718]
[1754856723205,0.81498489,803.93,802.05,0.21677718]
[1754856723505,0.81498489,803.92,802.05,0.21677718]
[1754856723705,0.81498489,803.91,802.05,0.21677718]
[1754856724005,0.81498489,803.9,802.05,0.21677718]
[1754856724207,0.81498489,803.89,802.05,0.21677718]
[1754856724401,0.81498489,803.88,802.05,0.21677718]
[1754856724602,0.81498489,803.87,802.05,0.21677718]
[1754856724803,0.81498489,803.86,802.05,0.21677718]
[1754856725006,0.81498489,803.85,802.05,0.21677718]
[1754856725207,0.81498489,803.84,802.05,0.21677718]
[1754856725504,1.1189191,804.45,802.05,0.21677718]
[1754856725505,0.81498489,803.83,802.05,0.21677718]
[1754856725710,0.81498489,803.82,802.05,0.21677718]
[1754856725907,0.81498489,803.81,802.05,0.21677718]
[1754856726104,0.81498489,803.8,800.96,2.7980894]
[1754856726304,0.81498489,803.79,801.9,0.2169522]
[1754856726505,0.81498489,803.78,801.9,0.2169522]
[1754856726705,0.81498489,803.77,800.67,2.7980894]
[1754856726909,0.81498489,803.76,801.65,0.21697113]
[1754856727208,0.81498489,803.75,800.68,2.7980894]
[1754856727410,0.81498489,803.75,801.68,0.21699278]
[1754856727712,0.81498489,803.74,800.57,2.7980894]
[1754856728011,0.81498489,803.74,796.28,13.430829]
[1754856728012,0.8244015,803.7,801.45,0.21701443]
[1754856728210,0.8244015,803.67,799.49,2.7980894]
[1754856728403,0.81498489,803.66,801.36,0.21703879]
[1754856728711,0.8244015,803.59,799.52,2.7980894]
[1754856729010,0.82164531,803.56,800.04,2.7980894]
[1754856729209,0.82164531,803.54,800.04,2.7980894]
[1754856729406,1.63375526,803.53,800.04,2.7980894]
[1754856729606,0.82164531,803.5,800.12,2.7980894]
[1754856729807,0.81210995,803.49,800.91,0.21711462]
[1754856730010,0.81210995,803.48,800.91,0.21711462]
[1754856730210,0.81210995,803.47,800.91,0.21711462]
[1754856730407,0.81210995,803.46,800.91,0.21711462]
[1754856730608,0.81210995,803.45,800.91,0.21711462]
[1754856730815,0.81210995,803.44,800.91,0.21711462]
[1754856731012,0.81210995,803.43,800.91,0.21711462]
[1754856731212,0.81210995,803.42,800.91,0.21711462]
[1754856731415,0.81210995,803.41,800.91,0.21711462]
[1754856731611,0.81210995,803.4,800.91,0.21711462]
[1754856731910,1.1189191,804.07,800.91,0.21711462]
[1754856731911,0.81210995,803.39,800.91,0.21711462]
[1754856732115,0.81210995,803.38,800.91,0.21711462]
[1754856732310,0.81210995,803.37,800.91,0.21711462]
[1754856732510,0.81210995,803.36,800.91,0.21711462]
[1754856732812,0.81210995,803.35,800.91,0.21711462]
[1754856733012,0.81210995,803.34,800.91,0.21711462]
[1754856733315,0.82164531,803.85,800.91,0.21711462]
[1754856733515,0.2164657,804.8,800.91,0.21711462]
[1754856733516,0.81050717,803.84,800.91,0.21711462]
[1754856733712,0.81050717,803.83,800.91,0.21711462]
[1754856733912,0.81050717,803.82,800.91,0.21711462]
[1754856734115,0.81050717,803.81,800.91,0.21711462]
[1754856734318,0.81050717,803.8,800.91,0.21711462]
[1754856734514,0.81050717,803.79,800.91,0.21711462]
[1754856734716,0.81050717,803.78,800.91,0.21711462]
[1754856734916,0.81050717,803.77,800.91,0.21711462]
[1754856735116,0.81050717,803.76,800.91,0.21711462]
[1754856735313,0.82164531,803.73,800.91,0.21711462]
[1754856735518,1.63215248,803.72,800.91,0.21711462]
[1754856735815,0.81050717,803.71,800.91,0.21711462]
[1754856736118,0.82164531,803.59,800.91,0.21711462]
[1754856736414,0.81050717,803.58,800.91,0.21711462]
[1754856736615,0.81050717,803.57,800.91,0.21711462]
[1754856736815,0.81050717,803.56,800.91,0.21711462]
[1754856737013,0.81050717,803.55,800.91,0.21711462]
[1754856737216,0.82164531,803.65,800.91,0.21711462]
[1754856737217,0.81050717,803.54,800.91,0.21711462]
[1754856737419,0.81050717,803.53,800.91,0.21711462]
[1754856737618,0.81050717,803.52,800.91,0.21711462]
[1754856737818,0.81050717,803.51,800.91,0.21711462]
[1754856738020,0.81050717,803.5,800.91,0.21711462]
[1754856738219,0.2164657,804.8,800.91,0.21711462]
[1754856738220,0.81050717,803.49,800.91,0.21711462]
[1754856738419,0.81050717,803.48,800.91,0.21711462]
[1754856738714,0.81050717,803.47,800.91,0.21711462]
[1754856738918,0.81050717,803.46,800.91,0.21711462]
[1754856739116,0.81050717,803.45,800.91,0.21711462]
[1754856739315,0.81050717,803.44,800.91,0.21711462]
[1754856739518,0.81050717,803.43,800.91,0.21711462]
[1754856739715,0.81050717,803.42,800.91,0.21711462]
[1754856739916,0.81050717,803.41,800.91,0.21711462]
[1754856740121,0.81050717,803.4,800.91,0.21711462]
[1754856740419,0.81050717,803.39,800.91,0.21711462]
[1754856740619,0.81050717,803.38,800.91,0.21711462]
[1754856740820,0.81050717,803.37,800.91,0.21711462]
[1754856741021,0.81050717,803.36,800.91,0.21711462]
[1754856741218,0.21711327,802.76,800.91,0.21711462]
[1754856779356,0.21711327,802.76,800.94,2.7980894]
[1754856781057,0.21711327,802.76,800.91,0.21711462]
[1754856782653,0.21711327,802.76,801.19,2.7980894]
[1754856783058,0.21711327,802.76,801.06,2.7980894]
[1754856783559,0.21711327,802.76,801.09,2.7980894]
[1754856784462,0.21711327,802.76,800.97,2.7980894]
[1754856784955,0.21711327,802.76,801.21,2.7980894]
[1754856785656,0.21711327,802.76,801.29,2.7980894]
[1754856786557,0.21711327,802.76,801.32,2.7980894]
[1754856788061,0.21711327,802.76,801.12,2.7980894]
[1754856788660,0.21711327,802.76,800.98,2.7980894]
[1754856789760,0.21711327,802.76,800.92,2.7980894]
[1754856790364,0.21711327,802.76,800.91,0.21711462]
[1754856793965,0.21711327,802.76,800.92,2.7980894]
[1754856795367,0.21711327,802.76,800.91,3.01520402]
[1754856796467,0.21711327,802.76,800.93,2.7980894]
[1754856797066,0.21711327,802.76,801.34,2.7980894]
[1754856797564,0.21711327,802.76,801.71,2.7980894]
[1754856797965,0.21711327,802.76,801.72,2.7980894]
[1754856798665,0.21711327,802.76,801.64,2.7980894]
[1754856799563,0.21711327,802.76,800.91,0.21711462]
[1754856799564,0.21711327,802.76,801.71,2.7980894]
[1754856800567,0.21711327,802.76,801.32,2.7980894]
[1754856801669,0.21711327,802.76,801.3,2.7980894]
[1754856802169,0.21711327,802.76,801.31,2.7980894]
[1754856803173,0.21711327,802.76,801.23,2.7980894]
[1754856804373,0.21711327,802.76,801.24,2.7980894]
[1754856804770,0.21711327,802.76,801.45,2.7980894]
[1754856805771,0.21711327,802.76,801.44,2.7980894]
[1754856806770,0.21711327,802.76,801.43,2.7980894]
[1754856807975,0.21711327,802.76,801.42,2.7980894]
[1754856808373,0.21711327,802.76,801.41,2.7980894]
[1754856809476,0.21711327,802.76,801.39,2.7980894]
[1754856809976,0.21711327,802.76,801.41,2.7980894]
[1754856810476,0.21711327,802.76,801.42,2.7980894]
[1754856811677,0.21711327,802.76,801.34,2.7980894]
[1754856812079,0.21711327,802.76,801.2,2.7980894]
[1754856812277,0.21711327,802.76,801.23,2.7980894]
[1754856812679,0.21711327,802.76,801.32,2.7980894]
[1754856813387,0.21711327,802.76,801.2,2.7980894]
[1754856813777,0.21711327,802.76,801.24,2.7980894]
[1754856814877,0.21711327,802.76,801.32,2.7980894]
[1754856816778,0.21711327,802.76,801.16,2.7980894]
[1754856817382,0.21711327,802.76,800.91,0.21711462]
[1754856817383,0.21711327,802.76,801.11,2.7980894]
[1754856818083,0.21711327,802.76,801.08,2.7980894]
[1754856818483,0.21711327,802.76,801.11,2.7980894]
[1754856818984,0.21711327,802.76,800.98,2.7980894]
[1754856819580,0.21711327,802.76,801.04,2.7980894]
[1754856819994,0.21711327,802.76,801.06,2.7980894]
[1754856820482,0.21711327,802.76,801.1,2.7980894]
[1754856821682,0.21711327,802.76,801.02,2.7980894]
[1754856822184,0.21711327,802.76,801.01,2.7980894]
[1754856822586,0.21711327,802.76,801.03,2.7980894]
[1754856823087,0.21711327,802.76,801.09,2.7980894]
[1754856823587,0.21711327,802.76,801.12,2.7980894]
[1754856824086,0.21711327,802.76,801.1,2.7980894]
[1754856824896,0.21711327,802.76,801.3,2.7980894]
[1754856825886,0.21711327,802.76,801.31,2.7980894]
[1754856826284,0.21711327,802.76,801.3,2.7980894]
[1754856826882,0.21711327,802.76,801.2,2.7980894]
[1754856827888,0.21711327,802.76,800.91,0.21711462]
[1754856827889,0.21711327,802.76,801.22,2.7980894]
[1754856828287,0.21711327,802.76,801.23,2.7980894]
[1754856828791,0.21711327,802.76,800.91,0.21711462]
[1754856828792,0.21711327,802.76,801.3,2.7980894]
[1754856829492,0.21711327,802.76,801.27,2.7980894]
[1754856830191,0.21711327,802.76,801.66,2.7980894]
[1754856830490,0.21711327,802.76,801.71,2.7980894]
[1754856832091,0.21711327,802.76,801.58,2.7980894]
[1754856832592,0.21711327,802.76,801.59,2.7980894]
[1754856833190,0.21711327,802.76,801.86,2.7980894]
[1754856835689,0.21711327,802.76,801.87,2.7980894]
[1754856837191,0.21711327,802.76,801.89,2.7980894]
[1754856837893,0.0524178,802.76,802.01,3.9173252]
[1754856838091,0.81788907,803.94,802.01,3.9173252]
[1754856838294,0.81788907,803.94,802.29,2.7980894]
[1754856838492,0.8276273,803.93,802.29,2.7980894]
[1754856838696,0.8276273,803.92,802.29,2.7980894]
[1754856838892,0.8276273,803.91,802.3,2.7980894]
[1754856839092,0.8276273,803.9,802.3,2.7980894]
[1754856839295,0.8276273,803.89,802.3,2.7980894]
[1754856839492,0.8276273,803.88,802.27,2.7980894]
[1754856839792,0.8276273,803.87,802.27,2.7980894]
[1754856839995,0.8276273,803.86,802.27,2.7980894]
[1754856840192,0.8276273,803.85,802.27,2.7980894]
[1754856840492,0.8276273,803.84,802.27,2.7980894]
[1754856840693,0.8276273,803.83,802.27,2.7980894]
[1754856840892,0.8276273,803.82,802.27,2.7980894]
[1754856841091,0.21684472,803.45,802.27,2.7980894]
[1754856841393,0.21684472,803.45,802.26,2.7980894]
[1754856843096,0.21684472,803.45,801.98,3.9173252]
[1754856843297,0.21684472,803.45,801.7,2.7980894]
[1754856843499,0.21684472,803.45,801.6,2.7980894]
[1754856844198,0.21684472,803.45,801.59,2.7980894]
[1754856844599,0.21684472,803.45,801.57,2.7980894]
[1754856845694,0.21684472,803.45,801.54,2.7980894]
[1754856846596,0.21684472,803.45,801.52,2.7980894]
[1754856847298,0.21684472,803.45,801.54,2.7980894]
[1754856848801,0.21684472,803.45,801.53,2.7980894]
[1754856849702,0.21684472,803.45,802.29,2.7980894]
[1754856850300,0.21684472,803.45,801.76,2.7980894]
[1754856850999,0.21684472,803.45,801.74,2.7980894]
[1754856851494,0.21684472,803.45,801.73,2.7980894]
[1754856851897,0.21684472,803.45,801.72,2.7980894]
[1754856852398,0.21684472,803.45,801.71,2.7980894]
[1754856852996,0.21684472,803.45,801.67,2.7980894]
[1754856853499,0.21684472,803.45,801.66,2.7980894]
[1754856854398,0.21684472,803.45,801.65,2.7980894]
[1754856855503,0.21684472,803.45,801.64,2.7980894]
[1754856856605,0.21684472,803.45,801.63,2.7980894]
[1754856857109,0.21684472,803.45,801.64,2.7980894]
[1754856857512,0.21684472,803.45,801.63,2.7980894]
[1754856857810,0.21684472,803.45,801.81,3.9173252]
[1754856858209,0.21684472,803.45,802.1,2.7980894]
[1754856859810,0.21684472,803.45,802.2,2.7980894]
[1754856860712,0.21684472,803.45,802.18,2.7980894]
[1754856861317,0.21684472,803.45,802.15,2.7980894]
[1754856861817,0.21684472,803.45,802.16,2.7980894]
[1754856862415,0.21684472,803.45,802.11,2.7980894]
[1754856862819,0.21684472,803.45,802.14,2.7980894]
[1754856863420,0.21684472,803.45,802.03,2.7980894]
[1754856863820,0.21684472,803.45,802.02,2.7980894]
[1754856864320,0.21684472,803.45,802.03,2.7980894]
[1754856864820,0.21684472,803.45,802.02,2.7980894]
[1754856866116,0.21684472,803.45,802.04,2.7980894]
[1754856869020,0.21684472,803.45,802.07,2.7980894]
[1754856869719,0.21684472,803.45,801.97,2.7980894]
[1754856870719,0.21684472,803.45,801.98,2.7980894]
[1754856871320,0.21684472,803.45,802.0,2.7980894]
[1754856871724,0.21684472,803.45,801.99,2.7980894]
[1754856872225,0.21684472,803.45,802.02,2.7980894]
[1754856873220,0.21684472,803.45,802.11,2.7980894]
[1754856873823,0.21684472,803.45,802.12,2.7980894]
[1754856875327,0.21684472,803.45,802.13,2.7980894]
[1754856876828,0.21684472,803.45,802.14,2.7980894]
[1754856877328,0.21684472,803.45,802.16,2.7980894]
[1754856877931,0.21684472,803.45,801.91,2.7980894]
[1754856878531,0.21684472,803.45,801.92,2.7980894]
[1754856879133,0.21684472,803.45,801.93,2.7980894]
[1754856879530,0.21684472,803.45,802.0,2.7980894]
[1754856880533,0.21684472,803.45,802.03,2.7980894]
[1754856881534,0.21684472,803.45,802.06,2.7980894]
[1754856882133,0.21684472,803.45,802.07,2.7980894]
[1754856882635,0.21684472,803.45,802.13,2.7980894]
[1754856883632,0.21684472,803.45,802.15,2.7980894]
[1754856884731,0.21684472,803.45,802.17,2.7980894]
[1754856885638,0.21684472,803.45,802.19,2.7980894]
[1754856886737,0.21684472,803.45,802.35,2.7980894]
[1754856887240,0.21684472,803.45,802.36,2.7980894]
[1754856887733,0.21684472,803.45,802.49,2.7980894]
[1754856888836,0.21684472,803.45,802.5,2.7980894]
[1754856889439,0.21684472,803.45,802.53,2.7980894]
[1754856890540,0.21684472,803.45,802.55,2.7980894]
[1754856891441,0.21684472,803.45,802.56,2.7980894]
[1754856892537,0.21684472,803.45,802.57,2.7980894]
[1754856893538,0.21684472,803.45,802.58,2.7980894]
[1754856895340,0.21684472,803.45,802.53,2.7980894]
[1754856895644,0.21684472,803.45,802.52,2.7980894]
[1754856896745,0.21684472,803.45,802.54,2.7980894]
[1754856897747,0.21684472,803.45,802.56,2.7980894]
[1754856899748,0.21684472,803.45,802.53,2.7980894]
[1754856900849,0.21684472,803.45,802.47,2.7980894]
[1754856901344,0.21684472,803.45,802.48,2.7980894]
[1754856901949,0.21684472,803.45,802.46,2.7980894]
[1754856902352,0.21684472,803.45,802.45,2.7980894]
[1754856903050,0.21684472,803.45,802.35,2.7980894]
[1754856903446,0.21684472,803.45,802.46,2.7980894]
[1754856903951,0.21684472,803.45,802.39,2.7980894]
[1754856904552,0.21684472,803.45,802.38,2.7980894]
[1754856905452,0.21684472,803.45,802.37,2.7980894]
[1754856906550,0.21684472,803.45,802.36,2.7980894]
[1754856907053,0.21684472,803.45,802.41,2.7980894]
[1754856907650,0.21684472,803.45,802.4,2.7980894]
[1754856909267,0.21684472,803.45,802.42,2.7980894]
[1754856909660,0.21684472,803.45,802.35,2.7980894]
[1754856910761,0.21684472,803.45,802.4,2.7980894]
[1754856912272,0.21684472,803.45,802.39,2.7980894]
[1754856912866,0.21684472,803.45,802.49,2.7980894]
[1754856913276,0.21684472,803.45,802.47,2.7980894]
[1754856913764,0.21684472,803.45,802.59,2.7980894]
[1754856914561,0.21684472,803.45,802.6,2.7980894]
[1754856914866,0.21684472,803.45,802.62,2.7980894]
[1754856915366,0.21684472,803.45,802.6,2.7980894]
[1754856916563,0.21684472,803.45,802.57,2.7980894]
[1754856917566,0.21684472,803.45,802.56,2.7980894]
[1754856918668,0.21684472,803.45,802.54,2.7980894]
[1754856919665,0.21684472,803.45,802.64,2.7980894]
[1754856920064,0.21684472,803.45,802.65,2.7980894]
[1754856920768,0.21684472,803.45,802.67,2.7980894]
[1754856921771,0.21684472,803.45,802.66,2.7980894]
[1754856922174,0.21684472,803.45,802.68,2.7980894]
[1754856922672,0.21684472,803.45,802.67,2.7980894]
[1754856923171,0.21684472,803.45,802.51,2.7980894]
[1754856924272,0.21684472,803.45,802.52,2.7980894]
[1754856924772,0.21684472,803.45,802.51,2.7980894]
[1754856925472,0.21684472,803.45,802.21,3.9173252]
[1754856925473,0.21684472,803.45,802.52,2.7980894]
[1754856926374,0.21684472,803.45,802.55,2.7980894]
[1754856929072,0.21684472,803.45,802.5,2.7980894]
[1754856929472,0.21684472,803.45,802.42,2.7980894]
[1754856930776,0.21684472,803.45,802.36,2.7980894]
[1754856931176,0.21684472,803.45,802.34,2.7980894]
[1754856932277,0.21684472,803.45,802.09,2.7980894]
[1754856932576,0.21684472,803.45,802.01,3.9173252]
[1754856932776,0.21684472,803.45,801.98,2.7980894]
[1754856933078,0.21684472,803.45,801.88,2.7980894]
[1754856933572,0.21684472,803.45,801.81,2.7980894]
[1754856933775,0.21684472,803.45,801.74,2.7980894]
[1754856934374,0.21684472,803.45,801.64,2.7980894]
[1754856935474,0.21684472,803.45,801.65,2.7980894]
[1754856935979,0.21684472,803.45,801.77,2.7980894]
[1754856936480,0.21684472,803.45,801.78,2.7980894]
[1754856936975,0.21684472,803.45,801.76,2.7980894]
[1754856937481,0.21684472,803.45,801.77,2.7980894]
[1754856938083,0.21684472,803.45,801.9,2.7980894]
[1754856938579,0.21684472,803.45,801.92,2.7980894]
[1754856939280,0.21684472,803.45,802.06,2.7980894]
[1754856939785,0.21684472,803.45,802.12,2.7980894]
[1754856940080,0.21684472,803.45,802.07,2.7980894]
[1754856940584,0.21684472,803.45,802.08,2.7980894]
[1754856942683,0.21684472,803.45,801.69,3.9173252]
[1754856942684,0.21684472,803.45,802.09,2.7980894]
[1754856943289,0.21684472,803.45,802.04,2.7980894]
[1754856943790,0.21684472,803.45,802.26,2.7980894]
[1754856945291,0.21684472,803.45,802.27,2.7980894]
[1754856945791,0.21684472,803.45,802.26,2.7980894]
[1754856946392,0.21684472,803.45,802.27,2.7980894]
[1754856947093,0.21684472,803.45,802.25,2.7980894]
[1754856947387,0.21684472,803.45,802.26,2.7980894]
[1754856948394,0.21684472,803.45,802.27,2.7980894]
[1754856949095,0.21684472,803.45,801.91,3.9173252]
[1754856949096,0.21684472,803.45,802.26,2.7980894]
[1754856949496,0.21684472,803.45,802.23,2.7980894]
[1754856950195,0.21684472,803.45,802.29,2.7980894]
[1754856950593,0.21684472,803.45,802.39,2.7980894]
[1754856952692,0.21684472,803.45,802.4,2.7980894]
[1754856953197,0.21684472,803.45,802.52,2.7980894]
[1754856953697,0.21684472,803.45,802.53,2.7980894]
[1754856954693,0.21684472,803.45,802.48,2.7980894]
[1754856955196,0.21684472,803.45,802.33,2.7980894]
[1754856955698,0.21684472,803.45,802.3,2.7980894]
[1754856956797,0.21684472,803.45,802.31,2.7980894]
[1754856958498,0.21684472,803.45,802.29,2.7980894]
[1754856958997,0.21684472,803.45,802.28,2.7980894]
[1754856959394,0.21684472,803.45,802.16,2.7980894]
[1754856959994,0.21684472,803.45,802.03,2.7980894]
[1754856961099,0.21684472,803.45,802.09,2.7980894]
[1754856961495,0.21684472,803.45,802.08,2.7980894]
[1754856962095,0.21684472,803.45,801.87,2.7980894]
[1754856962694,0.21684472,803.45,801.85,2.7980894]
[1754856963198,0.21684472,803.45,801.79,2.7980894]
[1754856963695,0.21684472,803.45,801.77,2.7980894]
[1754856964100,0.21684472,803.45,801.76,2.7980894]
[1754856964696,0.21684472,803.45,801.75,2.7980894]
[1754856965197,0.21684472,803.45,801.74,2.7980894]
[1754856965598,0.21684472,803.45,801.73,2.7980894]
[1754856966299,0.21684472,803.45,801.75,2.7980894]
[1754856966699,0.21684472,803.45,801.74,2.7980894]
[1754856967102,0.21684472,803.45,801.52,2.7980894]
[1754856967601,0.21684472,803.45,801.5,3.01483215]
[1754856968498,0.21684472,803.45,801.5,0.21674275]
[1754856969702,0.21684472,803.45,801.76,2.7980894]
[1754856970204,0.21684472,803.45,801.83,2.7980894]
[1754856970602,0.21684472,803.45,801.82,2.7980894]
[1754856971599,0.21684472,803.45,801.81,2.7980894]
[1754856972802,0.21684472,803.45,801.8,2.7980894]
[1754856974306,0.21684472,803.45,801.81,2.7980894]
[1754856975207,0.21684472,803.45,801.82,2.7980894]
[1754856975807,0.21684472,803.45,801.81,2.7980894]
[1754856976306,0.21684472,803.45,801.83,2.7980894]
[1754856977012,0.21684472,803.45,802.14,2.7980894]
[1754856978410,0.21684472,803.45,802.17,2.7980894]
[1754856978911,0.21684472,803.45,802.13,2.7980894]
[1754856980510,0.21684472,803.45,802.14,2.7980894]
[1754856981612,0.21684472,803.45,802.15,2.7980894]
[1754856982510,0.21684472,803.45,802.16,2.7980894]
[1754856983109,0.21684472,803.45,802.14,2.7980894]
[1754856983511,0.21684472,803.45,802.17,2.7980894]
[1754856984211,0.21684472,803.45,802.19,2.7980894]
[1754856984616,0.21684472,803.45,802.21,2.7980894]
[1754856985722,0.21684472,803.45,802.18,2.7980894]
[1754856986221,0.21684472,803.45,802.24,2.7980894]
[1754856986820,0.21684472,803.45,802.46,2.7980894]
[1754856987718,0.21684472,803.45,802.47,2.7980894]
[1754856988823,0.21684472,803.45,802.49,2.7980894]
[1754856989224,0.21684472,803.45,802.51,2.7980894]
[1754856989824,0.21684472,803.45,802.48,2.7980894]
[1754856991624,0.21684472,803.45,802.47,2.7980894]
[1754856991924,0.21684472,803.45,802.48,2.7980894]
[1754856994025,0.21684472,803.45,802.47,2.7980894]
[1754856995629,0.21684472,803.45,802.52,2.7980894]
[1754856996230,0.21684472,803.45,802.53,2.7980894]
[1754856996631,0.21684472,803.45,802.67,2.7980894]
[1754856997528,0.21684472,803.45,802.66,2.7980894]
[1754856998827,0.21684472,803.45,802.65,2.7980894]
[1754856999830,0.21684472,803.45,802.55,2.7980894]
[1754857000334,0.21684472,803.45,802.54,2.7980894]
[1754857001331,0.21684472,803.45,802.51,2.7980894]
[1754857003334,0.21684472,803.45,802.42,2.7980894]
[1754857004437,0.21684472,803.45,802.41,2.7980894]
[1754857005934,0.21684472,803.45,802.4,2.7980894]
[1754857006639,0.21684472,803.45,802.39,2.7980894]
[1754857007039,0.21684472,803.45,802.4,2.7980894]
[1754857007636,0.21684472,803.45,802.41,2.7980894]
[1754857007836,0.81788907,804.14,802.41,2.7980894]
[1754857008241,0.81788907,804.15,802.41,2.7980894]
[1754857008642,0.81788907,804.15,802.38,2.7980894]
[1754857009438,0.81788907,804.14,802.38,2.7980894]
[1754857009641,0.81788907,804.22,802.38,2.7980894]
[1754857010242,0.81788907,804.22,802.45,2.7980894]
[1754857010641,0.81788907,804.22,802.42,2.7980894]
[1754857011241,0.82741256,804.21,802.41,2.7980894]
[1754857011440,0.21676503,803.78,802.41,2.7980894]
[1754857011744,0.21676503,803.78,802.4,2.7980894]
[1754857012842,0.21676503,803.78,802.38,2.7980894]
[1754857013241,0.21676503,803.78,802.37,2.7980894]
[1754857013745,0.21676503,803.78,802.07,3.9173252]
[1754857013945,0.21676503,803.78,801.98,2.7980894]
[1754857014145,0.21676503,803.78,801.96,2.7980894]
[1754857014746,0.21676503,803.78,801.94,2.7980894]
[1754857015146,0.21676503,803.78,801.93,2.7980894]
[1754857015744,0.21676503,803.78,801.92,2.7980894]
[1754857016545,0.8269426,803.77,801.86,2.7980894]
[1754857016745,0.21676503,803.78,801.86,2.7980894]
[1754857016746,0.8269426,803.76,801.86,2.7980894]
[1754857017048,0.8269426,803.75,801.87,2.7980894]
[1754857017345,0.21676503,803.78,801.87,2.7980894]
[1754857017550,0.82692114,803.77,801.87,2.7980894]
[1754857017747,0.82692114,803.76,801.86,2.7980894]
[1754857017945,0.21676503,803.78,801.86,2.7980894]
[1754857018250,0.82692061,803.77,802.02,2.7980894]
[1754857018447,0.82692061,803.76,802.02,2.7980894]
[1754857018651,0.21676503,803.78,802.02,2.7980894]
[1754857018850,0.82691677,803.77,802.02,2.7980894]
[1754857019146,0.21676503,803.78,802.02,2.7980894]
[1754857019147,0.82691677,803.76,802.02,2.7980894]
[1754857019351,0.21676503,803.78,802.02,2.7980894]
[1754857019546,0.82691365,803.77,802.02,2.7980894]